[Event "Czech Open Rapid G1 2024"]
[Site "Pardubice"]
[Date "2024.07.18"]
[Round "9.4"]
[White "Neuman, Petr"]
[Black "Kuegel, Tobias"]
[Result "1/2-1/2"]
[Annotator "TA"]
[ECO "B27"]
[WhiteElo "2441"]
[BlackElo "2416"]
[PlyCount "80"]
[EventDate "2024.07.16"]
[EventType "swiss"]
[EventCountry "CZE"]
[SourceTitle "playchess.com"]
[Source "ChessBase"]
[SourceQuality "1"]
[TimeControl "1200+10"]

{[%evp 14,80,11,0,12,19,22,25,14,1,35,16,14,16,20,0,0,0,2,11,0,0,21,1,22,0,12,12,33,35,31,28,27,28,27,7,20,2,8,12,10,14,8,6,10,8,8,8,8,7,8,1,2,0,0,0,0,0,0,0,0,0,0,0,0,0,0,-8,-8]} 1. e4 {[%emt 0:00:02]} c5 {[%emt 0:00:26]} 2. Nc3 {[%emt 0:00:02]} g6 {[%emt 0:00:04]} 3. d4 {[%emt 0:00:02]} cxd4 {[%emt 0:00:08]} 4. Qxd4 {[%emt 0:00:02]} Nf6 {[%emt 0:00:07]} 5. Nf3 {[%emt 0:00:06]} Nc6 {[%emt 0:00:14]} 6. Qa4 {[%emt 0:00:02]} d6 {[%emt 0:00:26]} 7. e5 {[%emt 0:00:01]} dxe5 {[%emt 0:00:04]} 8. Nxe5 {[%emt 0:00:02][%cal Of1c4] next Bc4! is good for White.} Bg7 {[%emt 0:00:04]} 9. Bb5 {[%emt 0:00:41][%cal Oc1f4,Bf1b5,Bb5c6,Bc6f3][%mdl 32]} O-O {[%emt 0:00:04]} 10. Nxc6 {[%emt 0:00:03]} bxc6 {[%emt 0:00:02] White has an edge.} 11. Bxc6 {[%emt 0:00:02]} Rb8 {[%emt 0:00:22]} 12. O-O {[%emt 0:00:11]} Qc7 {[%emt 0:04:42]} 13. Bf3 {[%emt 0:00:14]} a5 {[%emt 0:03:08]} 14. Nb5 {[%emt 0:00:26]} Qe5 {[%emt 0:03:39]} 15. c4 {[%emt 0:00:15][%cal Oa4d1]} Ng4 {[%emt 0:00:55]} 16. Bxg4 {[%emt 0:00:25]} (16. Qxa5 $2 Qxh2#) 16... Bxg4 {[%emt 0:00:04]} 17. Qxa5 {[%emt 0:00:49]} Be6 {[%emt 0:01:08] A strong pair of Bishops.} 18. Re1 {[%emt 0:01:51]} Qc5 {[%emt 0:00:42]} 19. Bf4 {[%emt 0:00:45]} Ra8 {[%emt 0:02:35]} (19... Rbd8 $5) 20. Qc7 {[%emt 0:00:07]} Qxc4 {[%emt 0:00:28]} 21. Qxc4 {[%emt 0:00:17]} Bxc4 {[%emt 0:00:02]} 22. Nc3 {[%emt 0:00:02]} Bxc3 {[%emt 0:03:04]} 23. bxc3 {[%emt 0:00:01]} Ra7 {[%emt 0:00:36]} 24. h3 {[%emt 0:02:00]} Bxa2 {[%emt 0:00:32] The position is equal.} 25. Be3 {[%emt 0:00:23]} Raa8 {[%emt 0:00:16]} 26. Bc5 {[%emt 0:01:19]} Rfc8 {[%emt 0:00:02]} 27. Bxe7 {[%emt 0:00:22]} Rxc3 {[%emt 0:00:16]} 28. Re2 {[%emt 0:00:22]} Bd5 {[%emt 0:00:16]} 29. Rxa8+ {[%emt 0:00:16]} Bxa8 $11 {[%emt 0:00:02][%mdl 4096] Endgame. KRB-KRB} 30. Bf6 {[%emt 0:00:07]} Rc8 {[%emt 0:00:08] Repels Re8+} 31. Rd2 {[%emt 0:00:15]} h6 {[%emt 0:00:24]} 32. Kh2 {[%emt 0:00:15]} g5 {[%emt 0:00:15]} 33. g4 {[%emt 0:00:17]} Kh7 {[%emt 0:00:11]} 34. Rd8 {[%emt 0:01:25]} Rxd8 {[%emt 0:00:08]} 35. Bxd8 {[%emt 0:00:02] KB-KB} Kg6 {[%emt 0:00:04]} 36. Kg3 {[%emt 0:00:03]} f5 {[%emt 0:00:05]} 37. f4 {[%emt 0:00:04]} gxf4+ {[%emt 0:00:03]} 38. Kxf4 {[%emt 0:00:02]} fxg4 {[%emt 0:00:02]} 39. hxg4 {[%emt 0:00:02]} h5 {[%emt 0:00:04]} 40. gxh5+ {[%emt 0:00:01]} Kxh5 {[%emt 0:00:01] Weighted Error Value: White=0.03 (flawless) /Black=0.05 (flawless) .  Inaccurate:     	---       	Black=1      OK:         	White=14    	Black=13     Best:        	White=2     	Black=2} 1/2-1/2

[Event "Czech Open Rapid G1 2024"]
[Site "Pardubice"]
[Date "2024.07.18"]
[Round "9.5"]
[White "Johansson, Linus"]
[Black "Mica, Marek"]
[Result "1-0"]
[Annotator "TA"]
[ECO "D50"]
[WhiteElo "2451"]
[BlackElo "2375"]
[PlyCount "111"]
[EventDate "2024.07.16"]
[EventType "swiss"]
[EventCountry "CZE"]
[SourceTitle "playchess.com"]
[Source "ChessBase"]
[SourceQuality "1"]
[TimeControl "1200+10"]

{[%evp 9,111,28,46,54,70,65,200,189,212,216,208,210,219,210,273,277,275,271,271,270,283,281,259,218,215,226,502,504,498,501,518,512,502,483,534,531,523,518,641,649,637,607,824,506,521,525,518,525,537,529,539,506,560,545,588,579,705,579,739,695,711,710,747,738,1108,1085,1385,1464,5681,5489,12847,2982,29938,5522,29943,29945,12124,8718,8718,7615,1730,4302,29980,29980,29981,29982,29981,29975,29985,29986,29987,29988,29989,29990,29989,29984,29988,29989,29989,29989,29996,29997,29998,29999]} 1. d4 {[%emt 0:00:02]} Nf6 {[%emt 0:00:01]} 2. c4 {[%emt 0:00:01]} e6 {[%emt 0:00:01]} 3. Nc3 {[%emt 0:00:02]} d5 {[%emt 0:00:01]} 4. Bg5 {[%emt 0:00:04]} Bb4 {[%emt 0:00:02]} 5. e3 {[%emt 0:00:09]} c5 {[%emt 0:00:12]} 6. cxd5 {[%emt 0:00:25]} Qa5 {[%emt 0:00:16] Wards off Bb5+} 7. Bxf6 {[%emt 0:00:44]} gxf6 {[%emt 0:00:03]} ({Better is} 7... Bxc3+ $14 8. bxc3 Qxc3+ 9. Ke2 Qb2+ 10. Kf3 gxf6) 8. Nge2 $18 {[%emt 0:00:23] White is clearly better.} exd5 {[%emt 0:00:24]} 9. a3 {[%emt 0:00:13]} Bxc3+ {[%emt 0:00:09]} 10. Nxc3 {[%emt 0:00:03]} Be6 {[%emt 0:00:35]} 11. Bb5+ {[%emt 0:00:05]} Ke7 {[%emt 0:02:55]} 12. dxc5 {[%emt 0:00:12][%cal Oe3e4] Threatens to win with e4!} a6 {[%emt 0:00:18]} 13. b4 {[%emt 0:00:10][%cal Bb2b4,Bb4b5][%mdl 32]} Qc7 {[%emt 0:00:02]} 14. Be2 {[%emt 0:00:06]} (14. Nxd5+ Bxd5 15. Qxd5 axb5 16. Qe4+ Kf8 $17) 14... Rd8 {[%emt 0:01:23]} 15. O-O {[%emt 0:01:09]} Nc6 {[%emt 0:00:27]} 16. Bf3 {[%emt 0:01:04][%cal Rc3d5]} d4 {[%emt 0:00:54]} 17. Ne4 {[%emt 0:00:35] And now Nd6 would win.} a5 $2 {[%emt 0:01:56]} (17... Bc4 18. Nd6 Bxf1) 18. b5 {[%emt 0:00:41]} dxe3 {[%emt 0:00:28] [#]} 19. Qd6+ $3 {[%emt 0:00:21][%mdl 512]} Qxd6 {[%emt 0:00:43]} 20. cxd6+ {[%emt 0:00:02]} Kf8 {[%emt 0:00:07][%cal Oe3e2]} 21. bxc6 {[%emt 0:00:06]} exf2+ {[%emt 0:00:03]} 22. Kxf2 {[%emt 0:00:12]} bxc6 {[%emt 0:00:04]} 23. Rfd1 {[%emt 0:00:11]} Rab8 {[%emt 0:00:12]} 24. Nc5 {[%emt 0:00:11]} Rb2+ {[%emt 0:00:29]} 25. Kg1 {[%emt 0:00:04]} Rc2 {[%emt 0:00:15]} 26. Rac1 {[%emt 0:00:43]} Rxc1 {[%emt 0:00:10]} 27. Nxe6+ {[%emt 0:00:02]} fxe6 {[%emt 0:00:03]} 28. Rxc1 {[%emt 0:00:01]} Rxd6 {[%emt 0:00:06]} 29. Rxc6 {[%emt 0:00:02][%mdl 4096] Endgame. KRB-KR} Rd3 {[%emt 0:00:04]} 30. a4 {[%emt 0:00:20]} Ke7 {[%emt 0:00:25]} 31. Ra6 {[%emt 0:00:10]} f5 {[%emt 0:00:08]} 32. Rxa5 {[%emt 0:00:05]} Ra3 {[%emt 0:00:12]} 33. h4 {[%emt 0:00:43]} Kf6 {[%emt 0:00:06]} 34. Ra6 {[%emt 0:00:04]} Ke5 {[%emt 0:00:01]} 35. Kh2 {[%emt 0:00:12]} h6 {[%emt 0:00:01]} 36. Bb7 {[%emt 0:00:15]} Rc3 {[%emt 0:00:07]} 37. Rc6 {[%emt 0:00:17]} Ra3 {[%emt 0:00:15]} 38. Bc8 {[%emt 0:00:04]} Rxa4 {[%emt 0:00:01]} 39. Rxe6+ {[%emt 0:00:02]} Kf4 {[%emt 0:00:05]} 40. Rxh6 {[%emt 0:00:11]} Kg4 {[%emt 0:00:02]} 41. Rh8 {[%emt 0:00:15]} (41. Bb7 $142 Kf4 42. Bf3 Rd4 43. h5 Ke5 44. Kg3 Rd8 45. Rg6 Rb8 46. h6) 41... Ra5 {[%emt 0:00:06]} 42. Bb7 {[%emt 0:00:23]} Rb5 {[%emt 0:00:07]} 43. Bf3+ {[%emt 0:00:03]} Kf4 {[%emt 0:00:01]} 44. h5 {[%emt 0:00:07]} Kg5 {[%emt 0:00:01]} 45. Rg8+ {[%emt 0:00:03]} Kh6 {[%emt 0:00:02]} 46. Rg6+ {[%emt 0:00:02] White mates.} Kh7 {[%emt 0:00:01]} 47. Kg3 {[%emt 0:00:05]} Rb4 {[%emt 0:00:01]} 48. Rf6 {[%emt 0:00:05]} Rb5 {[%emt 0:00:11]} 49. Kf4 {[%emt 0:00:05]} Rc5 {[%emt 0:00:05]} 50. Rxf5 {[%emt 0:00:07]} Rc4+ {[%emt 0:00:02]} 51. Kg5 {[%emt 0:00:02]} Rc7 {[%emt 0:00:01]} 52. Rb5 {[%emt 0:00:06]} Rc8 {[%emt 0:00:09]} 53. Rb7+ {[%emt 0:00:06]} Kh8 {[%emt 0:00:01]} 54. Ra7 {[%emt 0:00:08]} Rc4 {[%emt 0:01:27]} 55. Kg6 {[%emt 0:00:23]} Rc6+ {[%emt 0:00:33]} 56. Bxc6 {[%emt 0:00:05] Black got outplayed after the opening.   Weighted Error Value: White=0.23 (precise) /Black=0.36.  Mistake:       	---       	Black=2      OK:         	White=13    	Black=12     Best:        	White=4     	---        Brilliant:      	White=1     	---} 1-0

[Event "Czech Open Rapid G1 2024"]
[Site "Pardubice"]
[Date "2024.07.18"]
[Round "9.6"]
[White "Konopka, Michal"]
[Black "Burdalev, Kirill"]
[Result "1/2-1/2"]
[Annotator "RC"]
[ECO "D23"]
[WhiteElo "2326"]
[BlackElo "2348"]
[PlyCount "82"]
[EventDate "2024.07.16"]
[EventType "swiss"]
[EventCountry "CZE"]
[SourceTitle "playchess.com"]
[Source "ChessBase"]
[SourceQuality "1"]
[TimeControl "1200+10"]

1. Nf3 {[%emt 0:00:01]} d5 {[%emt 0:00:02]} 2. d4 {[%emt 0:00:03]} Nf6 {[%emt 0:00:07]} 3. c4 {[%emt 0:00:02]} c6 {[%emt 0:00:24]} 4. Qc2 {[%emt 0:00:24]} dxc4 {[%emt 0:00:02]} 5. Qxc4 {[%emt 0:00:02]} Bf5 {[%emt 0:00:01]} 6. g3 {[%emt 0:00:14]} e6 {[%emt 0:00:02]} 7. Bg2 {[%emt 0:00:02]} Be7 {[%emt 0:00:01]} 8. O-O {[%emt 0:00:05]} O-O {[%emt 0:00:07]} 9. e3 {[%emt 0:00:20]} Nbd7 {[%emt 0:01:05]} 10. Nc3 {[%emt 0:00:05]} b5 {[%emt 0:00:43]} 11. Qe2 {[%emt 0:00:09]} b4 {[%emt 0:00:49]} 12. Na4 {[%emt 0:00:02]} Qa5 {[%emt 0:00:00]} 13. b3 {[%emt 0:00:02]} Qb5 {[%emt 0:00:03]} 14. Re1 {[%emt 0:01:25]} Bd3 {[%emt 0:01:23]} 15. Qd1 {[%emt 0:00:14]} Rad8 {[%emt 0:01:34]} 16. Nb2 {[%emt 0:00:09]} Be4 {[%emt 0:00:00]} 17. Nc4 {[%emt 0:01:39]} c5 {[%emt 0:00:19]} 18. Bb2 {[%emt 0:00:55]} Qb7 {[%emt 0:00:46]} 19. Nh4 {[%emt 0:00:51]} Bxg2 {[%emt 0:01:31]} 20. Nxg2 {[%emt 0:00:03]} cxd4 {[%emt 0:01:44]} 21. Bxd4 {[%emt 0:01:48]} e5 {[%emt 0:00:05]} 22. Bb2 {[%emt 0:00:02]} Nc5 {[%emt 0:00:02]} 23. Qe2 {[%emt 0:00:01]} Nd3 {[%emt 0:00:57]} 24. Red1 {[%emt 0:00:01]} e4 {[%emt 0:00:27]} 25. Ne1 {[%emt 0:00:15]} Nxb2 {[%emt 0:00:49]} 26. Qxb2 {[%emt 0:00:11]} Nd5 {[%emt 0:00:06]} 27. Qc2 {[%emt 0:01:40]} Bf6 {[%emt 0:01:29]} 28. Rac1 {[%emt 0:00:34]} Nc3 {[%emt 0:00:33]} 29. Rxd8 {[%emt 0:00:15]} Rxd8 {[%emt 0:00:04]} 30. a4 {[%emt 0:03:22]} bxa3 {[%emt 0:01:04]} 31. Nxa3 {[%emt 0:00:02]} Rb8 {[%emt 0:00:30]} 32. Nb1 {[%emt 0:00:03]} Rc8 {[%emt 0:01:40]} 33. Nxc3 {[%emt 0:02:41]} Rxc3 {[%emt 0:00:02]} 34. Qxc3 {[%emt 0:00:02]} Bxc3 {[%emt 0:00:03]} 35. Rxc3 {[%emt 0:00:02]} g6 {[%emt 0:00:37]} 36. Nc2 {[%emt 0:00:03]} Qa6 {[%emt 0:00:39]} 37. Kg2 {[%emt 0:00:06]} h5 {[%emt 0:00:53]} 38. h4 {[%emt 0:00:08]} Kg7 {[%emt 0:00:23]} 39. Nd4 {[%emt 0:00:02]} Qa5 {[%emt 0:00:38]} 40. Rc4 {[%emt 0:00:27]} Qb6 {[%emt 0:02:03]} 41. b4 {[%emt 0:00:01]} a6 {[%emt 0:00:02]} 1/2-1/2

[Event "Czech Open Rapid G1 2024"]
[Site "Pardubice"]
[Date "2024.07.18"]
[Round "9.7"]
[White "Prokofiev, Valentyn"]
[Black "Cerveny, Martin"]
[Result "1-0"]
[Annotator "RC"]
[ECO "A53"]
[WhiteElo "2337"]
[BlackElo "2325"]
[PlyCount "43"]
[EventDate "2024.07.16"]
[EventType "swiss"]
[EventCountry "CZE"]
[SourceTitle "playchess.com"]
[Source "ChessBase"]
[SourceQuality "1"]
[TimeControl "1200+10"]

1. Nf3 {[%emt 0:00:01]} Nf6 {[%emt 0:00:01]} 2. c4 {[%emt 0:00:10]} d6 {[%emt 0:00:03]} 3. d4 {[%emt 0:00:00]} Bf5 {[%emt 0:00:01]} 4. d5 {[%emt 0:00:01]} h6 {[%emt 0:00:08]} 5. Nc3 {[%emt 0:00:11]} Nbd7 {[%emt 0:00:19]} 6. Nd4 {[%emt 0:00:08]} Bh7 {[%emt 0:00:06]} 7. g3 {[%emt 0:00:44]} a5 {[%emt 0:00:42]} 8. Bg2 {[%emt 0:00:13]} Nc5 {[%emt 0:00:05]} 9. O-O {[%emt 0:00:29]} Qd7 {[%emt 0:00:31]} 10. b3 {[%emt 0:00:40]} e5 {[%emt 0:00:23]} 11. dxe6 {[%emt 0:00:14]} fxe6 {[%emt 0:00:02]} 12. Ba3 {[%emt 0:00:08]} e5 {[%emt 0:01:17]} 13. Bxc5 {[%emt 0:02:07]} dxc5 {[%emt 0:00:02]} 14. Ndb5 {[%emt 0:00:00]} e4 {[%emt 0:07:45]} 15. Qxd7+ {[%emt 0:00:59]} Kxd7 {[%emt 0:00:01]} 16. Rad1+ {[%emt 0:00:01]} Kc6 {[%emt 0:00:48]} 17. f3 {[%emt 0:00:54]} Re8 {[%emt 0:01:21]} 18. fxe4 {[%emt 0:00:11]} Re5 {[%emt 0:01:06]} 19. Rd8 {[%emt 0:02:23]} Rg8 {[%emt 0:00:28]} 20. Rc8 {[%emt 0:04:57]} Ne8 {[%emt 0:01:46]} 21. Rd1 {[%emt 0:03:02]} b6 {[%emt 0:01:44]} 22. Rxe8 {[%emt 0:00:02]} 1-0

[Event "Czech Open Rapid G1 2024"]
[Site "Pardubice"]
[Date "2024.07.18"]
[Round "9.8"]
[White "Movsesian, Julia"]
[Black "Kusa, Jakub"]
[Result "1/2-1/2"]
[Annotator "TA"]
[ECO "C54"]
[WhiteElo "2202"]
[BlackElo "2423"]
[PlyCount "62"]
[EventDate "2024.07.16"]
[EventType "swiss"]
[EventCountry "CZE"]
[SourceTitle "playchess.com"]
[Source "ChessBase"]
[SourceQuality "1"]
[TimeControl "1200+10"]

{[%evp 10,62,8,8,16,13,12,3,10,0,0,0,0,0,12,18,10,0,33,42,31,22,32,20,34,36,25,0,40,20,41,16,14,8,2,0,25,29,29,0,0,0,59,15,14,8,10,7,18,0,0,0,0,0,0]} 1. e4 {[%emt 0:00:01]} e5 {[%emt 0:00:02]} 2. Nf3 {[%emt 0:00:04]} Nc6 {[%emt 0:00:01]} 3. Bc4 {[%emt 0:00:04]} Bc5 {[%emt 0:00:02]} 4. c3 {[%emt 0:00:02]} Nf6 {[%emt 0:00:02]} 5. d3 {[%emt 0:00:02]} d6 {[%emt 0:00:02]} 6. O-O {[%emt 0:00:30]} a5 {[%emt 0:00:02]} 7. a4 {[%emt 0:00:08]} h6 {[%emt 0:00:21]} 8. Nbd2 {[%emt 0:00:03]} O-O {[%emt 0:00:03]} 9. Bb3 {[%emt 0:00:10]} Be6 {[%emt 0:00:19]} 10. Nc4 {[%emt 0:00:04]} Ba7 {[%emt 0:00:24]} 11. Be3 {[%emt 0:00:10]} Qd7 {[%emt 0:00:18]} 12. Bxa7 {[%emt 0:00:08]} Rxa7 {[%emt 0:00:02]} 13. Re1 {[%emt 0:00:07]} Ne7 {[%emt 0:00:25]} 14. d4 {[%emt 0:01:22]} Bxc4 {[%emt 0:00:05]} 15. Bxc4 {[%emt 0:00:04]} Ng6 {[%emt 0:01:01]} 16. dxe5 {[%emt 0:00:21]} dxe5 {[%emt 0:00:25]} 17. Qxd7 {[%emt 0:00:13]} Nxd7 {[%emt 0:00:05]} 18. Rad1 {[%emt 0:00:00]} Nb6 {[%emt 0:00:08]} 19. Bb3 {[%emt 0:00:11]} Raa8 {[%emt 0:00:02]} 20. Rd2 {[%emt 0:00:08]} Rfd8 {[%emt 0:00:11]} 21. Red1 {[%emt 0:00:02]} Rxd2 {[%emt 0:00:03]} 22. Rxd2 {[%emt 0:00:01]} Kf8 {[%emt 0:00:23]} 23. h4 {[%emt 0:00:08]} f6 {[%emt 0:00:43]} 24. g3 {[%emt 0:00:12]} h5 {[%emt 0:01:18]} 25. Ne1 {[%emt 0:01:26]} Ne7 {[%emt 0:00:16]} (25... Ke7 $11) 26. Nc2 {[%emt 0:00:33]} Nc6 {[%emt 0:00:31] The position is equal.} 27. Ne3 {[%emt 0:00:25]} Rd8 {[%emt 0:00:08]} 28. Rxd8+ {[%emt 0:00:57]} Nxd8 {[%emt 0:00:01]} 29. Nd5 {[%emt 0:00:01]} Nxd5 {[%emt 0:00:31]} 30. Bxd5 {[%emt 0:00:02]} Ke7 {[%emt 0:00:36]} 31. Kf1 {[%emt 0:00:10]} c6 {[%emt 0:00:28] Weighted Error Value: White=0.08 (flawless) /Black=0.11 (very precise) .  Mistake:       	---       	Black=1      Inaccurate:     	White=2     	Black=2      OK:         	White=9     	Black=12} 1/2-1/2

[Event "Czech Open Rapid G1 2024"]
[Site "Pardubice"]
[Date "2024.07.18"]
[Round "9.9"]
[White "Karvatskyi, Oleksii"]
[Black "Abdulov, Orkhan"]
[Result "0-1"]
[Annotator "RC"]
[ECO "B76"]
[WhiteElo "1990"]
[BlackElo "2382"]
[PlyCount "102"]
[EventDate "2024.07.16"]
[EventType "swiss"]
[EventCountry "CZE"]
[SourceTitle "playchess.com"]
[Source "ChessBase"]
[SourceQuality "1"]
[TimeControl "1200+10"]

1. d4 {[%emt 0:00:01]} g6 {[%emt 0:00:14]} 2. Nc3 {[%emt 0:00:02]} Bg7 {[%emt 0:00:20]} 3. e4 {[%emt 0:00:02]} c5 {[%emt 0:00:03]} 4. Nf3 {[%emt 0:00:19]} cxd4 {[%emt 0:00:11]} 5. Nxd4 {[%emt 0:00:03]} Nc6 {[%emt 0:00:04]} 6. Be3 {[%emt 0:00:30]} d6 {[%emt 0:00:23]} 7. f3 {[%emt 0:00:21]} Nf6 {[%emt 0:00:04]} 8. Qd2 {[%emt 0:00:01]} O-O {[%emt 0:00:03]} 9. g4 {[%emt 0:00:04]} h5 {[%emt 0:01:55]} 10. h3 {[%emt 0:00:50]} Qa5 {[%emt 0:00:31]} 11. O-O-O {[%emt 0:01:20]} Rb8 {[%emt 0:00:18]} 12. Kb1 {[%emt 0:00:04]} Kh7 {[%emt 0:00:10]} 13. f4 {[%emt 0:00:17]} Nxd4 {[%emt 0:00:51]} 14. Bxd4 {[%emt 0:00:02]} e5 {[%emt 0:00:10]} 15. Be3 {[%emt 0:00:30]} exf4 {[%emt 0:01:48]} 16. Bxf4 {[%emt 0:00:21]} Be6 {[%emt 0:00:01]} 17. a3 {[%emt 0:00:17]} Qb6 {[%emt 0:01:05]} 18. Qxd6 {[%emt 0:00:50]} Rbd8 {[%emt 0:01:33]} 19. Qxb6 {[%emt 0:00:07]} Rxd1+ {[%emt 0:00:01]} 20. Nxd1 {[%emt 0:00:01]} axb6 {[%emt 0:00:02]} 21. Bd3 {[%emt 0:00:09]} hxg4 {[%emt 0:00:02]} 22. hxg4+ {[%emt 0:00:02]} Kg8 {[%emt 0:00:01]} 23. g5 {[%emt 0:00:22]} Ng4 {[%emt 0:01:05]} 24. Bd6 {[%emt 0:00:26]} Rc8 {[%emt 0:00:38]} 25. Re1 {[%emt 0:00:50]} Ne5 {[%emt 0:00:18]} 26. Bxe5 {[%emt 0:00:39]} Bxe5 {[%emt 0:00:01]} 27. Ne3 {[%emt 0:00:02]} Bf4 {[%emt 0:00:22]} 28. Nd5 {[%emt 0:00:01]} Bxg5 {[%emt 0:00:35]} 29. Nxb6 {[%emt 0:00:21]} Rd8 {[%emt 0:00:03]} 30. Rd1 {[%emt 0:00:25]} Be3 {[%emt 0:00:05]} 31. Na4 {[%emt 0:00:11]} g5 {[%emt 0:00:08]} 32. Re1 {[%emt 0:00:07]} Bd4 {[%emt 0:00:39]} 33. Nc3 {[%emt 0:00:21]} g4 {[%emt 0:00:15]} 34. Ne2 {[%emt 0:00:01]} Be3 {[%emt 0:00:05]} 35. Rh1 {[%emt 0:00:20]} Kg7 {[%emt 0:00:28]} 36. Ng3 {[%emt 0:00:10]} Bf2 {[%emt 0:00:38]} 37. Nh5+ {[%emt 0:00:06]} Kg6 {[%emt 0:00:37]} 38. Kc1 {[%emt 0:00:52]} Kg5 {[%emt 0:00:03]} 39. Ng7 {[%emt 0:00:41]} g3 {[%emt 0:01:19]} 40. Nxe6+ {[%emt 0:00:54]} fxe6 {[%emt 0:00:01]} 41. Rh7 {[%emt 0:00:01]} Kg6 {[%emt 0:00:27]} 42. Rh4 {[%emt 0:00:04]} Kg5 {[%emt 0:00:15]} 43. Rh7 {[%emt 0:00:03]} Bd4 {[%emt 0:00:02]} 44. e5 {[%emt 0:00:25]} Bxe5 {[%emt 0:00:03]} 45. Be4 {[%emt 0:00:08]} b6 {[%emt 0:00:33]} 46. b4 {[%emt 0:00:12]} Kf4 {[%emt 0:00:18]} 47. Bc6 {[%emt 0:00:27]} Ke3 {[%emt 0:00:33]} 48. a4 {[%emt 0:00:26]} Bc3 {[%emt 0:01:13]} 49. b5 {[%emt 0:00:25]} Rd4 {[%emt 0:00:14]} 50. Re7 {[%emt 0:00:08]} Rxa4 {[%emt 0:00:05]} 51. Rxe6+ {[%emt 0:00:03]} Kf2 {[%emt 0:00:05]} 0-1

[Event "Czech Open Rapid G1 2024"]
[Site "Pardubice"]
[Date "2024.07.18"]
[Round "9.10"]
[White "Stocek, Jiri"]
[Black "Fishchuk, Vladyslav"]
[Result "1-0"]
[Annotator "TA"]
[ECO "A22"]
[WhiteElo "2524"]
[BlackElo "2234"]
[PlyCount "47"]
[EventDate "2024.07.16"]
[EventType "swiss"]
[EventCountry "CZE"]
[SourceTitle "playchess.com"]
[Source "ChessBase"]
[SourceQuality "1"]
[TimeControl "1200+10"]

{[%evp 9,47,11,12,0,7,0,0,-9,0,0,0,-23,-18,-5,-13,-26,0,0,33,25,37,28,181,180,306,279,336,328,350,0,0,0,757,216,498,474,1801,1777,29998,29999]} 1. c4 {[%emt 0:00:02]} e5 {[%emt 0:00:01][%cal Be7e5,Be5e4][%mdl 32]} 2. Nc3 {[%emt 0:00:02]} Nf6 {[%emt 0:00:01]} 3. Nf3 {[%emt 0:00:02]} e4 {[%emt 0:00:01]} 4. Ng5 {[%emt 0:00:06]} c6 {[%emt 0:00:01]} 5. d3 {[%emt 0:00:31]} exd3 {[%emt 0:00:07]} 6. e4 {[%emt 0:00:22]} Bb4 {[%emt 0:00:51]} 7. Bxd3 {[%emt 0:00:05] Black must now prevent e5.} d6 {[%emt 0:00:03]} 8. Bd2 {[%emt 0:00:45] The position is equal.} O-O {[%emt 0:00:19]} 9. O-O {[%emt 0:00:06]} Nbd7 {[%emt 0:00:45]} 10. Na4 {[%emt 0:02:36]} Bxd2 {[%emt 0:00:10]} 11. Qxd2 {[%emt 0:00:01]} Re8 {[%emt 0:01:45]} 12. Rae1 {[%emt 0:00:38]} Ne5 {[%emt 0:01:23] Threatens to win with ...h6.} 13. f4 {[%emt 0:00:18]} Ng6 {[%emt 0:01:04]} (13... Nxd3 $5 14. Qxd3 h6 $11) 14. Nc3 {[%emt 0:03:36]} a6 {[%emt 0:00:06]} 15. Bb1 {[%emt 0:00:46][%cal Oe4e5] And now e5! would win.} b5 $2 {[%emt 0:00:27] [#]} (15... h6 $11 {and Black is okay.} 16. Nf3 Bg4) 16. e5 $1 $18 {[%emt 0:00:09][%mdl 512]} Qb6+ {[%emt 0:00:30]} (16... Nh5 $142 17. Bxg6 (17. exd6 Rxe1 18. Qxe1 Qxd6 $16) (17. Qxd6 Qxd6 18. exd6 Rxe1 $16) 17... hxg6) (16... dxe5 17. Qxd8) 17. Kh1 {[%emt 0:00:15]} dxe5 {[%emt 0:00:09]} 18. fxe5 {[%emt 0:00:03]} (18. Bxg6 hxg6 19. fxe5 Ng4 $16) 18... Nxe5 {[%emt 0:00:52] [#]} 19. Rxf6 $2 $40 {[%emt 0:00:38][%mdl 128] White is up to no good.} gxf6 $11 {[%emt 0:00:01]} 20. Nxh7 {[%emt 0:00:05][%cal Bg5h7,Bh7f6,Bf6h5][%mdl 32]} Kg7 {[%emt 0:00:29][%mdl 8192] [#]} (20... bxc4 21. Nxf6+ (21. Qh6 Qf2 $18) 21... Kf8 22. Qd6+ (22. Nxe8 Ng4 $18) (22. Qh6+ Ke7 23. Rxe5+ Be6 24. Rxe6+ Kxe6 25. Nfd5+ Kd7 26. Bf5+ Re6 27. Bxe6+ fxe6) 22... Re7 23. Rxe5) (20... Qd8 $11 21. Qh6 Ng4 22. Nxf6+ Nxf6 23. Qg5+ Kf8 24. Qh6+ Kg8 25. Qg5+ Kf8 26. Qh6+ Kg8) 21. Ne4 $2 {[%emt 0:02:02]} (21. Nxf6 $1 Re6 (21... Kxf6 22. Qh6+) 22. Nce4 (22. Qg5+ Ng6 $18)) 21... Bf5 $2 {[%emt 0:00:49]} ({Worse is} 21... Kxh7 22. Nxf6+ Kg7 23. Nxe8+ Kf8 24. Qd6+ (24. Rxe5 c5 $18) 24... Kxe8 25. Rxe5+ (25. Qxe5+ Be6 $18) 25... Be6 26. Rxe6+ fxe6 27. Bg6#) (21... Nxc4 $2 22. Qf4 (22. Qc3 Re5 $18) 22... Qd8 23. Qg3+ $18 (23. Nhxf6 Re5 $18) (23. Nhxf6 Re5 $18)) (21... Ng6) 22. Nhxf6 $18 {[%emt 0:00:16] Intending Nh5+ and mate.} Ng6 {[%emt 0:01:34]} (22... Re6 $142 23. Nh5+ Kf8) 23. Nh5+ {[%emt 0:00:24] Excellent horsemanship.} Kh7 {[%emt 0:01:06]} 24. Nef6+ {[%emt 0:00:04] Weighted Error Value: White=0.52/Black=0.81.  Loses game:     	---       	Black=1      Missed win:     	White=1     	---        Mistake:       	White=1     	Black=4      Inaccurate:     	---       	Black=3      OK:         	White=5     	Black=4      Best:        	White=2     	---        Brilliant:      	White=1     	---} 1-0